bitfinex-derivatives/quotes_BTCF0:USTF0_20210705
["timestamp","ask_amount","ask_price","bid_price","bid_amount"]
[1625481932802,0.48115088,34426.0,34425.0,2.18742417]
[1625481933150,0.48115088,34426.0,34425.0,2.24642417]
[1625481934503,0.48115088,34426.0,34425.0,3.42090068]
[1625481935754,0.48115088,34426.0,34425.0,3.47990068]
[1625481936255,0.20515088,34426.0,34425.0,3.47990068]
[1625481936354,0.53815088,34434.0,34425.0,3.47990068]
[1625481936455,0.54015088,34434.0,34425.0,3.47990068]
[1625481936654,0.54015088,34434.0,34432.0,0.33577056]
[1625481936755,0.54015088,34434.0,34433.0,0.1]
[1625481937760,0.48115088,34434.0,34433.0,0.1]
[1625481938410,0.48115088,34434.0,34433.0,0.159]
[1625481938560,0.48115088,34434.0,34433.0,0.218]
[1625481938762,1.14277544,34437.0,34433.0,2.39872729]
[1625481938862,0.9022,34437.0,34433.0,2.39872729]
[1625481938961,0.9022,34437.0,34433.0,2.40285178]
[1625481939162,0.9022,34437.0,34434.0,0.00412433]
[1625481939262,0.9022,34437.0,34434.0,0.06312433]
[1625481939362,0.01,34436.0,34434.0,0.10412433]
[1625481939462,0.01,34436.0,34434.0,1.27729925]
[1625481939711,0.01,34436.0,34435.0,0.00411939]
[1625481939812,0.01,34436.0,34435.0,0.12211939]
[1625481940013,0.01,34436.0,34435.0,4.80935239]
[1625481940114,0.01,34436.0,34435.0,4.90935239]
[1625481940265,0.01,34436.0,34435.0,5.63107871]
[1625481940763,0.01,34436.0,34435.0,5.57207871]
[1625481940964,0.01,34436.0,34435.0,5.63107871]
[1625481941066,0.01,34436.0,34435.0,4.29186928]
[1625481941467,0.01,34436.0,34435.0,5.63239026]
[1625481941667,0.6363,34437.0,34435.0,5.63239026]
[1625481941968,0.6363,34437.0,34436.0,3.35519215]
[1625481942071,0.6363,34437.0,34436.0,3.41419215]
[1625481942167,0.6363,34437.0,34436.0,3.47319215]
[1625481942268,0.6363,34437.0,34436.0,3.41419215]
[1625481942470,0.6363,34437.0,34436.0,3.47319215]
[1625481942670,0.6363,34437.0,34436.0,3.51419215]
[1625481942824,0.6363,34437.0,34436.0,3.57319215]
[1625481943474,0.3604,34437.0,34436.0,3.57319215]
[1625481943926,0.3604,34437.0,34436.0,3.51419215]
[1625481944326,0.3604,34437.0,34436.0,2.3413167]
[1625481945426,0.3604,34437.0,34436.0,2.4003167]
[1625481945576,0.3604,34437.0,34436.0,3.57487775]
[1625481947128,0.3604,34437.0,34436.0,3.51587775]
[1625481947229,0.355,34437.0,34436.0,3.51587775]
[1625481947429,0.355,34437.0,34436.0,4.85762168]
[1625481947629,0.355,34437.0,34436.0,4.91662168]
[1625481948034,0.0845,34437.0,34436.0,4.91662168]
[1625481948335,0.0845,34437.0,34436.0,4.91862168]
[1625481949839,0.7961,34440.0,34436.0,6.42804226]
[1625481950088,0.7961,34440.0,34437.0,0.00411983]
[1625481950189,0.7961,34440.0,34439.0,4.69689866]
[1625481950391,0.7961,34440.0,34439.0,4.9374741]
[1625481950690,0.7961,34440.0,34439.0,4.94159399]
[1625481950989,0.7961,34440.0,34439.0,3.69962294]
[1625481952289,1.65269057,34440.0,34439.0,1.51891999]
[1625481952946,0.7961,34440.0,34439.0,2.52654503]
[1625481954247,0.7961,34440.0,34439.0,3.70098407]
[1625481954546,0.7961,34440.0,34439.0,1.51913437]
[1625481954748,0.7961,34440.0,34439.0,3.70180313]
[1625481957850,0.7961,34440.0,34439.0,3.76080313]
[1625481958754,0.7961,34440.0,34439.0,3.70180313]
[1625481958952,0.7961,34440.0,34439.0,5.04383948]
[1625481959052,0.5203,34440.0,34439.0,5.03971959]
[1625481959253,0.5203,34440.0,34439.0,5.0438354]
[1625481960154,0.5793,34440.0,34439.0,5.0438354]
[1625481960558,0.5793,34440.0,34439.0,3.69768324]
[1625481960855,0.5793,34440.0,34439.0,3.70179955]
[1625481962808,0.5793,34440.0,34439.0,3.76079955]
[1625481963009,0.5793,34440.0,34439.0,5.10407911]
[1625481963610,0.5203,34440.0,34439.0,5.10407911]
[1625481963710,0.5793,34440.0,34439.0,5.10407911]
[1625481963810,0.5203,34440.0,34439.0,5.10407911]
[1625481965365,0.5203,34440.0,34439.0,5.16307911]
[1625481965567,0.85726904,34444.0,34439.0,5.16307911]
[1625481965666,0.85726904,34444.0,34443.0,4.7916]
[1625481965766,0.85726904,34444.0,34443.0,5.14606]
[1625481965867,0.58146904,34444.0,34443.0,5.20506]
[1625481965969,0.58146904,34444.0,34443.0,5.20917551]
[1625481966167,7.8899,34514.0,34443.0,9.90397199]
[1625481966168,0.51422374,34449.0,34443.0,9.90397199]
[1625481966569,0.51422374,34449.0,34448.0,0.72172632]
[1625481966672,0.51422374,34449.0,34448.0,0.82172632]
[1625481966772,0.51420959,34450.0,34448.0,3.0005228]
[1625481966971,0.51420959,34450.0,34448.0,3.00463818]
[1625481967171,0.51420959,34450.0,34449.0,0.00411934]
[1625481967273,1.19976954,34451.0,34449.0,2.18247378]
[1625481967422,0.92396954,34451.0,34449.0,2.18247378]
[1625481967523,0.92396954,34451.0,34449.0,2.30047378]
[1625481967724,0.51418977,34454.0,34450.0,2.6782792]
[1625481967827,0.51418977,34454.0,34450.0,2.95108809]
[1625481967925,0.51418977,34454.0,34450.0,3.11008809]
[1625481968025,0.51418977,34454.0,34450.0,3.05108809]
[1625481968126,0.51418977,34454.0,34451.0,0.00411893]
[1625481968428,0.51418977,34454.0,34453.0,1.5064121]
[1625481968530,0.51418977,34454.0,34453.0,1.98756298]
[1625481968879,0.51418977,34454.0,34453.0,2.08756298]
[1625481968980,0.51418977,34454.0,34453.0,2.09168185]
[1625481969330,0.51418977,34454.0,34453.0,1.08740712]
[1625481969831,0.51418977,34454.0,34453.0,1.29208712]
[1625481970384,0.5140454,34455.0,34453.0,2.29535826]
[1625481970533,0.5140454,34455.0,34454.0,0.24057544]
[1625481970632,0.5140454,34455.0,34454.0,0.24469422]
[1625481970740,0.5140454,34455.0,34454.0,0.74629544]
[1625481971113,0.5140454,34455.0,34454.0,0.80529544]
[1625481971341,0.5140454,34455.0,34454.0,0.90529544]
[1625481971441,0.2384454,34455.0,34454.0,0.90529544]
[1625481971891,1.02752468,34460.0,34454.0,3.07625594]
[1625481971991,1.08652468,34460.0,34454.0,3.07625594]
[1625481972241,1.08652468,34460.0,34455.0,0.00412024]
[1625481972544,1.08652468,34460.0,34459.0,0.48115088]
[1625481972644,1.08652468,34460.0,34459.0,0.75347088]
[1625481972946,0.059,34460.0,34459.0,0.85347088]
[1625481973346,0.059,34460.0,34459.0,0.857591]
[1625481973445,0.059,34460.0,34459.0,0.916591]
[1625481973545,0.059,34460.0,34459.0,0.91247088]
[1625481977863,1.02537706,34466.0,34459.0,0.91247088]
[1625481977961,1.02537706,34466.0,34459.0,1.41247088]
[1625481978061,1.02537706,34466.0,34459.0,1.47147088]
[1625481978160,1.02537706,34466.0,34459.0,1.47558958]
[1625481978261,1.02537706,34466.0,34459.0,0.97758958]
[1625481978360,1.02537706,34466.0,34459.0,0.87758958]
[1625481978460,1.02537706,34466.0,34464.0,4.963]
[1625481978618,0.9121,34468.0,34465.0,0.48115088]
[1625481978712,0.9711,34468.0,34465.0,0.48115088]
[1625481978814,0.9121,34468.0,34465.0,0.54015088]
[1625481979061,0.9121,34468.0,34467.0,0.1]
[1625481979164,0.9121,34468.0,34467.0,0.39198]
[1625481980266,0.9711,34468.0,34467.0,0.39198]
[1625481980366,0.9711,34468.0,34467.0,0.1]
[1625481980668,0.9711,34468.0,34467.0,0.34057544]
[1625481982574,1.0301,34468.0,34467.0,0.34057544]
[1625481983344,2.0529116,34468.0,34467.0,0.34057544]
[1625481984678,1.0301,34468.0,34467.0,0.34057544]
[1625481985079,0.9711,34468.0,34467.0,0.34057544]
[1625481986080,1.0301,34468.0,34467.0,0.34057544]
[1625481986182,0.9711,34468.0,34467.0,0.34057544]
[1625481986533,1.0301,34468.0,34467.0,0.34057544]
[1625481986883,0.9711,34468.0,34467.0,0.34057544]
[1625481986982,0.9711,34468.0,34467.0,0.54772544]
[1625481987283,0.9711,34468.0,34467.0,0.54972544]
[1625481988638,0.9121,34468.0,34467.0,0.54972544]
[1625481990444,0.9711,34468.0,34467.0,0.54972544]
[1625481990644,0.9121,34468.0,34467.0,0.54972544]
[1625481995252,0.9121,34468.0,34467.0,0.55385589]
[1625481995502,0.9121,34468.0,34467.0,0.34670589]
[1625482009786,1.21872,34468.0,34467.0,0.34670589]
[1625482009886,1.27772,34468.0,34467.0,0.34670589]
[1625482011894,1.21872,34468.0,34467.0,0.34670589]
[1625482013598,0.9121,34468.0,34467.0,0.34670589]
[1625482016102,0.9121,34468.0,34467.0,1.34070471]
[1625482019909,0.9121,34468.0,34467.0,2.50221294]
[1625482024017,0.9121,34468.0,34467.0,3.83117217]
[1625482027272,0.9121,34468.0,34467.0,5.32632122]
[1625482027725,0.9121,34468.0,34467.0,4.49568923]
[1625482027826,0.9121,34468.0,34467.0,4.55468923]
[1625482028076,0.9121,34468.0,34467.0,6.04965837]
[1625482028476,1.0003,34468.0,34467.0,6.04965837]
[1625482028576,0.9121,34468.0,34467.0,6.04965837]
[1625482028676,0.9121,34468.0,34467.0,6.10865837]
[1625482028779,0.9121,34468.0,34467.0,6.19425837]
[1625482029780,0.9431,34471.0,34467.0,6.19425837]
[1625482030081,0.9431,34471.0,34468.0,0.00412876]
[1625482030180,0.9431,34471.0,34468.0,0.06312876]
[1625482030282,0.9431,34471.0,34470.0,4.15280135]
[1625482030380,0.9431,34471.0,34470.0,4.21180135]
[1625482030680,0.9431,34471.0,34470.0,4.21592997]
[1625482030781,0.9431,34471.0,34470.0,5.7115351]
[1625482030881,0.9431,34471.0,34470.0,5.95211054]
[1625482031083,0.9431,34471.0,34470.0,6.05211054]
[1625482031233,0.9431,34471.0,34470.0,4.55650541]
[1625482031733,0.9431,34471.0,34470.0,6.0521989]
[1625482032182,0.9431,34471.0,34470.0,4.55650541]
[1625482033685,0.9431,34471.0,34470.0,6.05206725]
[1625482036886,0.9431,34471.0,34470.0,6.13956725]
[1625482037086,0.9431,34471.0,34470.0,6.05206725]
[1625482041146,0.9431,34471.0,34470.0,6.11106725]
[1625482041347,0.9431,34471.0,34470.0,6.12100448]
[1625482041546,0.74257453,34479.0,34470.0,6.12100448]
[1625482041647,0.057,34479.0,34478.0,4.14483329]
[1625482041745,0.68553971,34482.0,34478.0,4.37970329]
[1625482041847,0.74453971,34482.0,34478.0,4.37970329]
[1625482042146,0.74453971,34482.0,34479.0,0.00412866]
[1625482042296,0.80353971,34482.0,34481.0,1.65794822]
[1625482042596,0.80353971,34482.0,34481.0,1.66207786]
[1625482042901,0.80353971,34482.0,34481.0,1.76207786]
[1625482043001,0.80353971,34482.0,34481.0,2.48380418]
[1625482043453,0.74453971,34482.0,34481.0,1.48903525]
[1625482043705,0.74453971,34482.0,34481.0,2.4836349]
[1625482046910,0.230468,34482.0,34481.0,2.4836349]
[1625482047810,0.230468,34482.0,34481.0,3.64311036]
[1625482048112,0.230468,34482.0,34481.0,2.92138404]
[1625482048412,0.059,34482.0,34481.0,2.92138404]
[1625482048611,0.17146503,34483.0,34481.0,2.98038404]
[1625482048961,0.17146503,34483.0,34482.0,0.96230176]
[1625482049061,0.23046503,34483.0,34482.0,0.96643294]
[1625482049262,0.059,34483.0,34482.0,0.96643294]
[1625482049663,0.118,34483.0,34482.0,3.7796076]
[1625482049763,0.118,34483.0,34482.0,3.8796076]
[1625482050013,0.059,34483.0,34482.0,3.8796076]
[1625482050113,0.059,34483.0,34482.0,4.1610776]
[1625482050365,0.23041895,34483.0,34482.0,3.00271156]
[1625482050865,0.059,34483.0,34482.0,4.16063327]
[1625482051816,0.059,34483.0,34482.0,3.00271156]
[1625482052170,0.059,34483.0,34482.0,2.72124156]
[1625482054172,0.17136163,34484.0,34482.0,2.72124156]
[1625482054575,0.17136163,34484.0,34482.0,2.62124156]
[1625482054678,0.17136163,34484.0,34483.0,0.00413063]
[1625482054927,1.08338078,34485.0,34483.0,1.6579123]
[1625482055027,1.14238078,34485.0,34483.0,1.6579123]
[1625482055127,1.14238078,34485.0,34484.0,0.00413061]
[1625482055229,1.14238078,34485.0,34484.0,0.10413061]
[1625482055429,0.9711,34485.0,34484.0,0.76561386]
[1625482055928,1.14239004,34485.0,34484.0,0.76561386]
[1625482056429,1.14239004,34485.0,34484.0,1.02613386]
[1625482056681,0.9711,34485.0,34484.0,2.01826493]
[1625482057482,0.9711,34485.0,34484.0,1.02613386]
[1625482057934,0.9711,34485.0,34484.0,2.01865991]
[1625482059339,0.9711,34485.0,34484.0,1.02613386]
[1625482059439,0.9121,34485.0,34484.0,1.02613386]
[1625482059891,0.9711,34485.0,34484.0,1.02613386]
[1625482060794,0.9711,34485.0,34484.0,2.01877845]
[1625482061145,0.9121,34485.0,34484.0,2.01877845]
[1625482062046,0.9711,34485.0,34484.0,2.01877845]
[1625482062451,0.9711,34485.0,34484.0,2.51493749]
[1625482063303,0.9121,34485.0,34484.0,2.51493749]
[1625482064065,0.9121,34485.0,34484.0,2.57393749]
[1625482064259,0.9121,34485.0,34484.0,2.51493749]
[1625482064508,0.9121,34485.0,34484.0,4.99331155]
[1625482065011,0.9121,34485.0,34484.0,3.67151205]
[1625482065408,0.9121,34485.0,34484.0,4.99314807]
[1625482065858,0.9121,34485.0,34484.0,3.67151205]
[1625482068311,0.9121,34485.0,34484.0,3.67351205]
[1625482073773,0.9711,34485.0,34484.0,3.67351205]
[1625482076379,0.9711,34485.0,34484.0,2.51693749]
[1625482077081,0.9711,34485.0,34484.0,3.67423721]
[1625482078583,0.9711,34485.0,34484.0,4.99709116]
[1625482080137,0.9711,34485.0,34484.0,3.67423721]
[1625482081191,0.9711,34485.0,34484.0,4.99694807]
[1625482084400,0.9121,34485.0,34484.0,5.05594807]
[1625482084600,0.08578557,34487.0,34484.0,5.56454796]
[1625482084703,0.08578557,34487.0,34484.0,5.62354796]
[1625482084803,0.08578557,34487.0,34485.0,0.00412818]
[1625482084904,0.08578557,34487.0,34485.0,0.01272634]
[1625482085005,0.9111,34489.0,34486.0,6.10886063]
[1625482085113,0.25721656,34493.0,34486.0,6.22686063]
[1625482085208,0.25721656,34493.0,34492.0,0.72172632]
[1625482085326,0.25721656,34493.0,34492.0,1.02836632]
[1625482085402,0.25721656,34493.0,34492.0,1.08736632]
[1625482085506,0.09881656,34493.0,34492.0,1.08736632]
[1625482085606,0.25702549,34500.0,34492.0,7.28089716]
[1625482085706,0.25702549,34500.0,34492.0,7.28502472]
[1625482085805,0.25702549,34500.0,34492.0,7.22602472]
[1625482085905,0.25702549,34500.0,34493.0,0.00412775]
[1625482086105,0.25702549,34500.0,34493.0,0.06312775]
[1625482086206,0.59952585,34500.0,34499.0,2.14142724]
[1625482086705,0.59952585,34500.0,34499.0,2.245555]
[1625482086807,0.51367572,34500.0,34499.0,1.25720397]
[1625482087207,0.51367572,34500.0,34499.0,1.97893029]
[1625482087306,0.42825492,34500.0,34499.0,2.96723287]
[1625482087707,0.85631297,34500.0,34499.0,2.96723287]
[1625482088309,0.08572393,34500.0,34499.0,2.96723287]
[1625482088808,0.14472393,34500.0,34499.0,2.96723287]
[1625482088959,0.14472393,34500.0,34499.0,2.24550655]
[1625482089160,0.08572393,34500.0,34499.0,2.24550655]
[1625482089512,0.08572393,34500.0,34499.0,3.20780831]
[1625482090519,0.42807012,34501.0,34499.0,3.20780831]
[1625482090615,0.48707012,34501.0,34499.0,3.20780831]
[1625482090818,0.48707012,34501.0,34500.0,0.00411954]
[1625482091016,0.48707012,34501.0,34500.0,0.41593542]
[1625482091017,1.25660976,34501.0,34500.0,0.41593542]
[1625482091367,1.25660976,34501.0,34500.0,0.33357224]
[1625482091568,1.25660976,34501.0,34500.0,0.43357224]
[1625482092219,0.40118474,34501.0,34500.0,0.59896839]
[1625482092621,0.57219309,34501.0,34500.0,0.51661852]
[1625482092721,0.57219309,34501.0,34500.0,0.51249898]
[1625482093121,1.25639736,34501.0,34500.0,0.1824998]
[1625482093975,0.57219309,34501.0,34500.0,0.1824998]
[1625482094424,0.9143478,34501.0,34500.0,0.51253627]
[1625482094823,0.57219309,34501.0,34500.0,0.1824998]
[1625482095175,0.57219309,34501.0,34500.0,0.5125061]
[1625482095975,1.2563284,34501.0,34500.0,0.1824998]
[1625482097279,0.91430502,34501.0,34500.0,0.51245735]
[1625482097781,0.57219309,34501.0,34500.0,0.1824998]
[1625482098179,0.40105095,34501.0,34500.0,0.1824998]
[1625482098380,0.40105095,34501.0,34500.0,0.1844998]
[1625482098581,0.91413083,34501.0,34500.0,0.51376567]
[1625482099034,0.57207988,34501.0,34500.0,0.1844998]
[1625482100687,0.91414537,34501.0,34500.0,0.1844998]
[1625482101489,0.57207988,34501.0,34500.0,0.1844998]
[1625482102041,0.91419908,34501.0,34500.0,0.51358011]
[1625482102240,0.91419908,34501.0,34500.0,0.51770037]
[1625482102543,0.48676888,34501.0,34500.0,0.43520057]
[1625482103045,0.4011192,34501.0,34500.0,0.43520057]
[1625482103397,0.48677404,34501.0,34500.0,0.43520057]
[1625482103844,0.48677404,34501.0,34500.0,0.43108031]
[1625482103945,0.14465484,34501.0,34500.0,0.92453269]
[1625482104194,0.14465484,34501.0,34500.0,0.9286528]
[1625482104297,0.48672159,34501.0,34500.0,0.51745202]
[1625482104595,0.48672159,34501.0,34500.0,0.43520042]
[1625482105146,0.08565484,34501.0,34500.0,0.92867476]
[1625482105846,0.08565009,34502.0,34500.0,1.25726395]
[1625482106396,0.08563292,34503.0,34501.0,1.1546495]
[1625482106896,0.08563292,34503.0,34502.0,0.00411976]
[1625482106996,0.08563292,34503.0,34502.0,0.5971725]
[1625482107451,0.14463292,34503.0,34502.0,0.5971725]
[1625482107548,0.40105762,34503.0,34502.0,0.83228805]
[1625482108349,0.34205762,34503.0,34502.0,0.83228805]
[1625482108452,0.34205762,34503.0,34502.0,0.50344942]
[1625482108950,0.98783467,34504.0,34502.0,0.91437191]
[1625482109050,0.059,34503.0,34502.0,0.59725191]
[1625482109452,0.40103915,34503.0,34502.0,0.1863533]
[1625482109901,0.91401882,34503.0,34502.0,0.1863533]
[1625482110503,0.40103915,34503.0,34502.0,0.1863533]
[1625482111656,0.91399028,34503.0,34502.0,0.1863533]
[1625482112208,0.40103915,34503.0,34502.0,0.1863533]
[1625482114468,0.40103915,34503.0,34502.0,0.5109333]
[1625482114568,0.34203915,34503.0,34502.0,0.5109333]
[1625482115018,0.40103915,34503.0,34502.0,0.5109333]
[1625482115118,0.48667612,34503.0,34502.0,0.83979345]
[1625482116021,0.42767612,34503.0,34502.0,0.83979345]
[1625482116321,0.42767612,34503.0,34502.0,0.84179345]
[1625482116722,1.32983016,34504.0,34502.0,0.92380485]
[1625482117022,1.32983016,34504.0,34503.0,0.00412401]
[1625482117123,0.98782858,34504.0,34503.0,0.33285556]
[1625482117623,0.98782858,34504.0,34503.0,0.573431]
[1625482117923,0.98782858,34504.0,34503.0,0.673431]
[1625482118174,0.98782858,34504.0,34503.0,1.16643048]
[1625482118678,0.98782858,34504.0,34503.0,0.673431]
[1625482119578,0.98782858,34504.0,34503.0,0.732431]
[1625482119677,0.98782858,34504.0,34503.0,0.673431]
[1625482119779,0.9022,34504.0,34503.0,0.83747049]
[1625482119879,0.9022,34504.0,34503.0,1.49449855]
[1625482120830,0.9022,34504.0,34503.0,2.47971684]
[1625482121283,0.9022,34504.0,34503.0,2.53871684]
[1625482121381,0.9022,34504.0,34503.0,2.47971684]
[1625482121482,0.9022,34504.0,34503.0,1.49449855]
[1625482122037,0.9022,34504.0,34503.0,2.47974675]
[1625482122286,0.9022,34504.0,34503.0,2.53874675]
[1625482122388,0.9022,34504.0,34503.0,2.47974675]
[1625482122486,0.9022,34504.0,34503.0,2.59774675]
[1625482122587,0.9022,34504.0,34503.0,2.53874675]
[1625482122787,0.9022,34504.0,34503.0,2.47974675]
[1625482122888,0.9022,34504.0,34503.0,2.53874675]
[1625482122987,0.9022,34504.0,34503.0,2.47974675]
[1625482123989,0.9022,34504.0,34503.0,1.49449855]
[1625482124994,0.9022,34504.0,34503.0,2.48003375]
[1625482125542,0.9022,34504.0,34503.0,1.49449855]
[1625482128296,0.9022,34504.0,34503.0,1.49649855]
[1625482130652,0.9022,34504.0,34503.0,2.48594943]
[1625482132110,0.9022,34504.0,34503.0,2.54494943]
[1625482132460,0.9022,34504.0,34503.0,2.48594943]
[1625482132767,0.9022,34504.0,34503.0,2.54494943]
[1625482133368,0.9022,34504.0,34503.0,3.69948173]
[1625482133815,0.9022,34504.0,34503.0,3.64048173]
[1625482137726,0.9022,34504.0,34503.0,4.95790844]
[1625482138035,1.0006,34505.0,34503.0,3.64048173]
[1625482138141,0.42825207,34506.0,34504.0,0.5]
[1625482138262,0.42825207,34506.0,34504.0,0.059]
[1625482138344,0.34005207,34506.0,34504.0,0.118]
[1625482138474,1.85344234,34507.0,34505.0,4.61316464]
[1625482138475,1.34,34507.0,34505.0,4.61316464]
[1625482138534,1.2243,34507.0,34505.0,5.11316464]
[1625482138638,0.3802,34507.0,34505.0,5.17628066]
[1625482138740,0.3802,34507.0,34505.0,5.23528066]
[1625482138827,0.3802,34507.0,34506.0,0.02253984]
[1625482138926,0.3802,34507.0,34506.0,0.14053984]
[1625482139027,0.3802,34507.0,34506.0,0.08153984]
[1625482139127,0.3802,34507.0,34506.0,6.15892089]
[1625482139229,0.3802,34507.0,34506.0,6.24909078]
[1625482139426,0.3802,34507.0,34506.0,6.30809078]
[1625482139827,0.3802,34507.0,34506.0,6.79907036]
[1625482140028,0.3802,34507.0,34506.0,6.78924166]
[1625482140729,0.3802,34507.0,34506.0,6.79906373]
[1625482141231,0.3802,34507.0,34506.0,6.81635992]
[1625482141432,0.3802,34507.0,34506.0,6.80653785]
[1625482141684,0.3802,34507.0,34506.0,6.81636431]
[1625482141784,0.3802,34507.0,34506.0,6.75736431]
[1625482141986,0.4392,34507.0,34506.0,6.69836431]
[1625482142086,0.4392,34507.0,34506.0,6.68853785]
[1625482142285,0.4392,34507.0,34506.0,5.20816558]
[1625482142483,0.4392,34507.0,34506.0,5.19175821]
[1625482143185,0.4982,34507.0,34506.0,5.19175821]
[1625482143286,0.3802,34507.0,34506.0,5.19175821]
[1625482143587,0.4392,34507.0,34506.0,5.19175821]
[1625482143687,0.4982,34507.0,34506.0,5.19175821]
[1625482143788,0.4392,34507.0,34506.0,5.19175821]
[1625482143889,0.3802,34507.0,34506.0,5.19175821]
[1625482144192,0.3802,34507.0,34506.0,5.19152567]
[1625482144689,0.3802,34507.0,34506.0,6.67277348]
[1625482144988,0.4392,34507.0,34506.0,6.67277348]
[1625482145088,0.3802,34507.0,34506.0,6.67277348]
[1625482145639,0.3802,34507.0,34506.0,6.6730061]
[1625482150449,0.3802,34507.0,34506.0,6.9751861]
[1625482152259,0.3802,34507.0,34506.0,6.6730061]
[1625482152468,0.4392,34507.0,34506.0,6.6730061]
[1625482152859,0.3802,34507.0,34506.0,6.6730061]
[1625482152960,0.3802,34507.0,34506.0,5.19175829]
[1625482154313,0.3802,34507.0,34506.0,5.25075829]
[1625482154413,0.3802,34507.0,34506.0,6.67152355]
[1625482156175,0.3802,34507.0,34506.0,2.06592095]
[1625482156778,0.3802,34507.0,34506.0,6.67190359]
[1625482157329,0.3802,34507.0,34506.0,5.19213833]
[1625482158582,0.3802,34507.0,34506.0,6.67257989]
[1625482159545,0.3802,34507.0,34506.0,5.19213833]
[1625482162387,0.4392,34507.0,34506.0,5.19213833]
[1625482164643,0.3802,34507.0,34506.0,5.19213833]
[1625482164743,0.3802,34507.0,34506.0,5.44326833]
[1625482165744,0.4392,34507.0,34506.0,5.44326833]
[1625482166045,0.4392,34507.0,34506.0,5.19213833]
[1625482167046,0.3802,34507.0,34506.0,5.19213833]
[1625482167295,0.4392,34507.0,34506.0,5.19213833]
[1625482167395,0.3802,34507.0,34506.0,5.19213833]
[1625482168346,0.4392,34507.0,34506.0,5.19213833]
[1625482169250,0.3802,34507.0,34506.0,5.19213833]
[1625482170403,0.3802,34507.0,34506.0,3.19013833]
[1625482170505,0.4392,34507.0,34506.0,1.29125613]
[1625482170659,0.76182,34507.0,34506.0,1.29125613]
[1625482171117,0.84758732,34507.0,34506.0,0.65888642]
[1625482171455,0.76182,34507.0,34506.0,0.65888642]
[1625482171656,0.76182,34507.0,34506.0,0.6586538]
[1625482171857,1.44677911,34507.0,34506.0,0.6586538]
[1625482171957,1.44677911,34507.0,34503.0,0.24257544]
[1625482172058,1.68735455,34507.0,34506.0,0.24057544]
[1625482173462,1.68735455,34507.0,34503.0,0.24257544]
[1625482173761,1.68735455,34507.0,34504.0,0.00416106]
[1625482173962,1.00239544,34507.0,34504.0,0.00416106]
[1625482174563,0.08580448,34505.0,34504.0,0.00416106]
[1625482174663,0.14480448,34505.0,34504.0,0.00416106]
[1625482175167,0.059,34505.0,34504.0,0.00416106]
[1625482175365,0.118,34505.0,34504.0,0.00416106]
[1625482176068,0.35857544,34505.0,34504.0,0.00416106]
[1625482176570,0.35857544,34505.0,34504.0,0.08674262]
[1625482176670,0.35857544,34505.0,34501.0,0.004]
[1625482176770,0.85857544,34505.0,34501.0,0.004]
[1625482176920,0.85857544,34505.0,34502.0,0.00416183]
[1625482177172,0.85857544,34505.0,34485.0,0.057]
[1625482177271,0.85857544,34505.0,16085.0,1.85163168]
[1625482177272,0.057,34504.0,16085.0,1.85163168]
[1625482177372,0.116,34504.0,16085.0,1.85163168]
[1625482177472,0.116,34504.0,34498.0,0.00415484]
[1625482177570,0.118,34504.0,34498.0,0.00415484]
[1625482177671,0.118,34504.0,34493.0,1.48703159]
[1625482177774,0.675,34504.0,34493.0,1.48703159]
[1625482177873,0.675,34504.0,34503.0,0.00084793]
[1625482177971,0.618,34504.0,34503.0,0.00084793]
[1625482178073,0.79957544,34504.0,34503.0,0.00084793]
[1625482178175,0.05815207,34503.0,34494.0,0.00414844]
[1625482178272,0.05815207,34503.0,34493.0,1.48703159]
[1625482178273,0.11715207,34503.0,34493.0,1.48703159]
[1625482178375,0.5,34502.0,34490.0,1.48868525]
[1625482178475,0.618,34502.0,34490.0,1.48868525]
[1625482178574,0.618,34502.0,34494.0,0.00414851]
[1625482178776,0.618,34502.0,34491.0,0.00414856]
[1625482178874,0.057,34501.0,34491.0,0.00414856]
[1625482178975,0.175,34501.0,34491.0,0.00414856]
[1625482179077,0.675,34501.0,34490.0,0.99253381]
[1625482179175,0.675,34501.0,34485.0,1.65409473]
[1625482179276,0.675,34501.0,34484.0,1.65383474]
[1625482179377,0.675,34501.0,34499.0,0.006]
[1625482179476,0.618,34501.0,34484.0,1.65383474]
[1625482179576,0.618,34501.0,34485.0,0.00414438]
[1625482179781,0.057,34500.0,34485.0,0.00414438]
[1625482179877,0.43888,34500.0,34485.0,0.00414438]
[1625482180030,0.96230176,34486.0,34485.0,0.00414438]
[1625482180132,1.08030176,34486.0,34482.0,0.00414431]
[1625482180230,1.08030176,34486.0,34483.0,0.00988647]
[1625482180330,1.02130176,34486.0,34483.0,0.00988647]
[1625482180429,0.96230176,34486.0,34483.0,0.00988647]
[1625482180633,0.96230176,34486.0,34484.0,0.00414415]
[1625482180734,0.96230176,34486.0,34485.0,0.00987464]
[1625482181233,0.96230176,34486.0,34485.0,0.01401865]
[1625482183439,0.96230176,34486.0,34485.0,0.13201865]
[1625482183639,0.96230176,34486.0,34485.0,0.07301865]
[1625482183740,0.96230176,34486.0,34485.0,1.78243912]
[1625482183889,0.96230176,34486.0,34485.0,1.72343912]
[1625482183989,0.72172632,34486.0,34485.0,1.78332854]
[1625482184090,0.72172632,34486.0,34485.0,2.02390398]
[1625482184189,0.63662632,34486.0,34485.0,2.03249821]
[1625482184290,0.62372632,34486.0,34485.0,2.03249821]
[1625482184390,0.24057544,34496.0,34485.0,5.92699821]
[1625482184696,0.24057544,34496.0,34486.0,0.00414236]
[1625482184790,0.24057544,34496.0,34493.0,1.64633742]
[1625482184892,0.24057544,34496.0,34493.0,1.95430742]
[1625482184992,0.24057544,34496.0,34493.0,2.07230742]
[1625482185091,0.24057544,34496.0,34495.0,0.00065662]
[1625482185194,0.24057544,34496.0,34495.0,0.11865662]
[1625482185291,0.24057544,34496.0,34495.0,0.12848679]
[1625482185393,0.24057544,34496.0,34495.0,0.22848679]
[1625482185594,0.24057544,34496.0,34495.0,0.23262876]
[1625482185946,0.24057544,34496.0,34495.0,1.5491091]
[1625482186146,0.48115088,34496.0,34495.0,1.78968454]
[1625482186849,0.48115088,34496.0,34495.0,1.78991714]
[1625482187048,0.48115088,34496.0,34495.0,3.43528548]
[1625482187599,0.48115088,34496.0,34495.0,1.78991714]
[1625482188401,0.48115088,34496.0,34495.0,1.76191714]
[1625482190753,0.48115088,34496.0,34495.0,2.9140366]
[1625482191553,0.48115088,34496.0,34495.0,4.39537927]
[1625482192057,0.48115088,34496.0,34495.0,6.04067518]
[1625482199069,0.48115088,34496.0,34495.0,4.39537927]
[1625482200924,0.48115088,34496.0,34495.0,4.3855491]
[1625482201174,0.48115088,34496.0,34495.0,5.37365943]